[Event "4NCL 2023-2024"]
[Site "Daventry"]
[Date "2024.05.05"]
[Round "10.13"]
[White "Hoffmann, Hendrik"]
[Black "Palliser, Richard J D"]
[Result "1/2-1/2"]
[ECO "B22"]
[WhiteElo "2231"]
[BlackElo "2377"]
[Annotator "TA"]
[PlyCount "24"]
[EventDate "2023.11.11"]
[EventType "team-tourn"]
[EventCountry "ENG"]
[SourceTitle "playchess.com"]
[Source "ChessBase"]
[SourceQuality "1"]
[TimeControl "40/6000+30:3000+30"]

{[%evp 19,24,18,12,8,10,6,14]} 1. e4 {[%emt 0:00:02]} c5 {[%emt 0:03:20]} 2. Nf3 {[%emt 0:00:26]} Nc6 {[%emt 0:00:06]} 3. c3 {[%emt 0:00:13]} d5 {[%emt 0:00:11]} 4. exd5 {[%emt 0:00:21]} Qxd5 {[%emt 0:00:05]} 5. d4 {[%emt 0:00:16]} Bg4 {[%emt 0:00:17]} 6. Be2 {[%emt 0:00:36]} cxd4 {[%emt 1:39:31]} 7. cxd4 {[%emt 0:00:23]} e6 {[%emt 0:00:00]} 8. O-O {[%emt 0:01:23]} Nf6 {[%emt 0:00:00]} 9. Nc3 {[%emt 0:00:25]} Qa5 {[%emt 0:00:00]} 10. Be3 {[%emt 0:01:16]} Bd6 {[%emt 0:00:00] The position is equal.} 11. h3 {[%emt 0:02:16]} Bh5 {[%emt 0:00:00]} 12. Qb3 {[%emt 0:04:03]} Qb4 {[%emt 0:00:00] An uneventful encounter.   Weighted Error Value: White=0.00 (flawless) /Black=0.00 (flawless) .  OK:         	White=1     	Black=1} 1/2-1/2

[Event "4NCL 2023-2024"]
[Site "Daventry"]
[Date "2024.05.05"]
[Round "10.14"]
[White "Wall, Tim P"]
[Black "Maciol, Ryszard"]
[Result "1/2-1/2"]
[ECO "C02"]
[WhiteElo "2203"]
[BlackElo "2127"]
[Annotator "RC"]
[PlyCount "45"]
[EventDate "2023.11.11"]
[EventType "team-tourn"]
[EventCountry "ENG"]
[SourceTitle "playchess.com"]
[Source "ChessBase"]
[SourceQuality "1"]
[TimeControl "40/6000+30:3000+30"]

1. e4 {[%emt 0:08:20]} e6 {[%emt 0:00:04]} 2. d4 {[%emt 0:00:50]} d5 {[%emt 0:00:42]} 3. e5 {[%emt 0:00:10]} c5 {[%emt 0:00:13]} 4. c3 {[%emt 0:00:17]} Qb6 {[%emt 0:00:39]} 5. Nf3 {[%emt 0:00:25]} Nc6 {[%emt 0:01:04]} 6. Bd3 {[%emt 0:00:25]} Nh6 {[%emt 0:09:10]} 7. O-O {[%emt 0:02:50]} cxd4 {[%emt 0:02:24]} 8. Bxh6 {[%emt 0:06:35]} gxh6 {[%emt 0:02:06]} 9. cxd4 {[%emt 0:09:32]} Qxb2 {[%emt 0:08:53]} 10. Nbd2 {[%emt 0:01:40]} Bg7 {[%emt 0:03:47]} 11. Qe2 {[%emt 0:14:09]} O-O {[%emt 0:11:59]} 12. Rfb1 {[%emt 0:03:28]} Qa3 {[%emt 0:02:59]} 13. Nf1 {[%emt 0:08:52]} Qe7 {[%emt 0:07:15]} 14. Bc2 {[%emt 0:12:19]} f5 {[%emt 0:05:13]} 15. Ba4 {[%emt 0:07:03]} Qc7 {[%emt 0:02:50]} 16. Bxc6 {[%emt 0:08:20]} bxc6 {[%emt 0:01:35]} 17. Rc1 {[%emt 0:01:32]} Rb8 {[%emt 0:02:31]} 18. Ng3 {[%emt 0:06:54]} Rb6 {[%emt 0:02:25]} 19. Nh5 {[%emt 0:01:37]} f4 {[%emt 0:06:30]} 20. Rc3 {[%emt 0:05:44]} Qf7 {[%emt 0:03:28]} 21. Nxg7 {[%emt 0:01:55]} Qxg7 {[%emt 0:03:18]} 22. Rac1 {[%emt 0:00:19]} Bd7 {[%emt 0:04:08]} 23. Ne1 {[%emt 0:01:13]} 1/2-1/2

[Event "4NCL 2023-2024"]
[Site "Daventry"]
[Date "2024.05.05"]
[Round "10.15"]
[White "Duessler, Stefanie"]
[Black "Weller, Jean-Luc"]
[Result "0-1"]
[ECO "C06"]
[WhiteElo "2079"]
[BlackElo "2211"]
[Annotator "RC"]
[PlyCount "70"]
[EventDate "2023.11.11"]
[EventType "team-tourn"]
[EventCountry "ENG"]
[SourceTitle "playchess.com"]
[Source "ChessBase"]
[SourceQuality "1"]
[TimeControl "40/6000+30:3000+30"]

1. e4 {[%emt 0:02:56]} e6 {[%emt 0:00:06]} 2. d4 {[%emt 0:00:06]} d5 {[%emt 0:00:05]} 3. Nd2 {[%emt 0:00:16]} Nf6 {[%emt 0:00:08]} 4. e5 {[%emt 0:00:11]} Nfd7 {[%emt 0:00:07]} 5. Bd3 {[%emt 0:00:22]} c5 {[%emt 0:00:07]} 6. c3 {[%emt 0:00:04]} Nc6 {[%emt 0:00:08]} 7. Ne2 {[%emt 0:00:33]} cxd4 {[%emt 0:00:39]} 8. cxd4 {[%emt 0:01:13]} f6 {[%emt 0:00:12]} 9. exf6 {[%emt 0:00:46]} Nxf6 {[%emt 0:00:07]} 10. Nf3 {[%emt 0:01:06]} Bd6 {[%emt 0:00:14]} 11. O-O {[%emt 0:00:48]} O-O {[%emt 0:00:13]} 12. Bf4 {[%emt 0:00:58]} Bxf4 {[%emt 0:01:47]} 13. Nxf4 {[%emt 0:00:03]} Ne4 {[%emt 0:00:14]} 14. Qc1 {[%emt 0:01:05]} h6 {[%emt 0:25:57]} 15. Qe3 {[%emt 0:03:25]} Qf6 {[%emt 0:07:59]} 16. Ne2 {[%emt 0:01:34]} Nd6 {[%emt 0:01:14]} 17. Rac1 {[%emt 0:06:48]} Bd7 {[%emt 0:03:55]} 18. Ne5 {[%emt 0:10:50]} Be8 {[%emt 0:00:54]} 19. Ng3 {[%emt 0:01:06]} Rd8 {[%emt 0:14:38]} 20. Bb1 {[%emt 0:03:24]} Nb5 {[%emt 0:26:32]} 21. Qd3 {[%emt 0:11:17]} Nxe5 {[%emt 0:03:42]} 22. dxe5 {[%emt 0:00:06]} Qxe5 {[%emt 0:00:19]} 23. Qh7+ {[%emt 0:06:26]} Kf7 {[%emt 0:00:05]} 24. Rce1 {[%emt 0:08:34]} Qf6 {[%emt 0:02:09]} 25. f4 {[%emt 0:01:08]} Ke7 {[%emt 0:01:57]} 26. Re5 {[%emt 0:02:48]} Kd6 {[%emt 0:12:52]} 27. Rfe1 {[%emt 0:00:46]} Kc7 {[%emt 0:04:08]} 28. Rxe6 {[%emt 0:01:24]} Qd4+ {[%emt 0:00:02]} 29. Kh1 {[%emt 0:00:50]} Kb8 {[%emt 0:00:01]} 30. Re7 {[%emt 0:01:45]} Bc6 {[%emt 0:00:02]} 31. Bd3 {[%emt 0:15:31]} Nd6 {[%emt 0:00:46]} 32. Rxg7 {[%emt 0:02:13]} Rh8 {[%emt 0:02:06]} 33. Qg6 {[%emt 0:02:51]} Be8 {[%emt 0:00:12]} 34. Qe6 {[%emt 0:02:05]} Qxg7 {[%emt 0:00:59]} 35. f5 {[%emt 0:01:01]} Rf8 {[%emt 0:00:41]} 0-1

[Event "4NCL 2023-2024"]
[Site "Daventry"]
[Date "2024.05.05"]
[Round "10.16"]
[White "Navrotescu, Andreea"]
[Black "Franco, Gaston"]
[Result "1-0"]
[ECO "D36"]
[WhiteElo "2222"]
[BlackElo "2061"]
[Annotator "RC"]
[PlyCount "73"]
[EventDate "2023.11.11"]
[EventType "team-tourn"]
[EventCountry "ENG"]
[SourceTitle "playchess.com"]
[Source "ChessBase"]
[SourceQuality "1"]
[TimeControl "40/6000+30:3000+30"]

1. d4 {[%emt 0:01:05]} d5 {[%emt 0:00:14]} 2. c4 {[%emt 0:00:11]} e6 {[%emt 0:00:05]} 3. Nc3 {[%emt 0:00:04]} Nf6 {[%emt 0:00:06]} 4. cxd5 {[%emt 0:00:05]} exd5 {[%emt 0:00:04]} 5. Bg5 {[%emt 0:00:05]} Be7 {[%emt 0:00:13]} 6. e3 {[%emt 0:00:07]} O-O {[%emt 0:00:14]} 7. Bd3 {[%emt 0:00:08]} Nbd7 {[%emt 0:00:10]} 8. Qc2 {[%emt 0:00:59]} c6 {[%emt 0:00:13]} 9. Nge2 {[%emt 0:07:57]} Re8 {[%emt 0:01:14]} 10. f3 {[%emt 0:01:29]} Nf8 {[%emt 0:02:08]} 11. O-O {[%emt 0:10:20]} g6 {[%emt 0:07:11]} 12. Rae1 {[%emt 0:10:05]} Ne6 {[%emt 0:05:04]} 13. Bh4 {[%emt 0:02:13]} Nh5 {[%emt 0:02:03]} 14. Bf2 {[%emt 0:01:09]} f5 {[%emt 0:11:44]} 15. e4 {[%emt 0:05:59]} Nef4 {[%emt 0:25:52]} 16. exd5 {[%emt 0:08:29]} cxd5 {[%emt 0:00:44]} 17. Nxf4 {[%emt 0:02:15]} Nxf4 {[%emt 0:00:09]} 18. Bg3 {[%emt 0:04:35]} Nxd3 {[%emt 0:04:28]} 19. Qxd3 {[%emt 0:00:05]} b6 {[%emt 0:01:04]} 20. Be5 {[%emt 0:16:21]} a5 {[%emt 0:12:18]} 21. Rf2 {[%emt 0:03:51]} Ba6 {[%emt 0:06:31]} 22. Qd1 {[%emt 0:00:03]} Rc8 {[%emt 0:02:46]} 23. f4 {[%emt 0:00:49]} Qd7 {[%emt 0:05:24]} 24. Qf3 {[%emt 0:04:50]} Red8 {[%emt 0:00:21]} 25. Qg3 {[%emt 0:01:21]} Rc6 {[%emt 0:06:45]} 26. Rf3 {[%emt 0:00:49]} Rdc8 {[%emt 0:00:59]} 27. Rfe3 {[%emt 0:00:33]} Re6 {[%emt 0:09:46]} 28. Qf3 {[%emt 0:00:55]} Bb7 {[%emt 0:00:22]} 29. g4 {[%emt 0:07:23]} Rf8 {[%emt 0:02:02]} 30. R1e2 {[%emt 0:01:17]} Bd6 {[%emt 0:04:07]} 31. Bxd6 {[%emt 0:01:34]} Rxe3 {[%emt 0:00:05]} 32. Qxe3 {[%emt 0:00:11]} Qxd6 {[%emt 0:00:03]} 33. g5 {[%emt 0:00:24]} Kf7 {[%emt 0:00:42]} 34. Nb5 {[%emt 0:03:48]} Qd7 {[%emt 0:00:13]} 35. Qe5 {[%emt 0:00:24]} Qxb5 {[%emt 0:00:28]} 36. Qc7+ {[%emt 0:00:10]} Kg8 {[%emt 0:00:07]} 37. Re7 {[%emt 0:00:02]} 1-0

[Event "4NCL 2023-2024"]
[Site "Daventry"]
[Date "2024.05.05"]
[Round "10.17"]
[White "Royal, Shreyas"]
[Black "Williams, Simon K"]
[Result "1-0"]
[ECO "A40"]
[WhiteElo "2464"]
[BlackElo "2467"]
[Annotator "TA"]
[PlyCount "77"]
[EventDate "2023.11.11"]
[EventType "team-tourn"]
[EventCountry "ENG"]
[SourceTitle "playchess.com"]
[Source "ChessBase"]
[SourceQuality "1"]
[TimeControl "40/6000+30:3000+30"]

{[%evp 9,77,30,23,25,97,95,88,81,82,95,97,106,129,128,141,126,135,49,58,64,56,56,56,62,57,65,57,56,60,56,58,65,66,61,75,66,64,49,67,78,62,62,188,176,200,209,286,275,255,271,276,262,324,326,319,279,323,327,374,375,428,409,477,486,481,450,733,689,891,914]} 1. d4 {[%emt 0:00:06]} e6 {[%emt 0:00:49]} 2. c4 {[%emt 0:00:25]} b6 {[%emt 0:02:10]} 3. Nf3 {[%emt 0:03:40]} Bb7 {[%emt 0:00:51]} 4. g3 {[%emt 0:00:24]} g6 {[%emt 0:04:22]} 5. Bg5 {[%emt 0:04:09]} f6 {[%emt 0:00:48]} 6. Bd2 {[%emt 0:00:50]} e5 {[%emt 0:12:25]} 7. dxe5 $16 {[%emt 0:11:32]} fxe5 {[%emt 0:00:14]} 8. Bg2 {[%emt 0:00:26] White is better.} Bg7 {[%emt 0:01:34]} 9. Nc3 {[%emt 0:01:51]} Nf6 {[%emt 0:07:35]} 10. O-O {[%emt 0:00:06]} d6 {[%emt 0:24:57] [#]} 11. Nd5 $1 {[%emt 0:05:02][%mdl 512]} c6 {[%emt 0:07:23]} 12. Nxf6+ {[%emt 0:01:00]} Qxf6 {[%emt 0:04:55]} 13. Bb4 {[%emt 0:06:49]} ({White should try} 13. Ng5 $16) 13... Na6 $14 {[%emt 0:10:11]} 14. Qxd6 {[%emt 0:05:06] Rad1 is the strong threat.} (14. Bxd6 $2 Rd8 15. Bxe5 (15. c5 $2 Nxc5 16. b4 Ne4 $19) 15... Rxd1 16. Raxd1 Qf7 $19 (16... Qe7 17. Bd6 $15)) 14... Nxb4 {[%emt 0:00:39]} 15. Qxb4 {[%emt 0:01:40]} c5 $1 {[%emt 0:01:06]} 16. Qa4+ {[%emt 0:03:09]} Bc6 {[%emt 0:01:18]} 17. Qc2 {[%emt 0:00:06]} e4 {[%emt 0:07:44]} 18. Nd2 {[%emt 0:00:12][%cal Bf3d2,Bd2e4,Be4g5][%mdl 32]} O-O-O {[%emt 0:00:48][%cal Be8c8,Bc8d8,Bd8e7][%mdl 32]} 19. Nxe4 {[%emt 0:15:10]} (19. Bxe4 $2 Rxd2 (19... Qxb2 20. Qxb2 Bxb2 21. Rad1 $16) 20. Qxd2 Bxe4 $19) 19... Qxb2 {[%emt 0:00:09]} 20. Qxb2 {[%emt 0:00:40]} Bxb2 {[%emt 0:00:06] This pair of bishops is nice.} 21. Rab1 {[%emt 0:00:05]} Bg7 {[%emt 0:03:25]} 22. Rfd1 {[%emt 0:06:50]} (22. Ng5 $6 Bxg2 23. Kxg2 Rd2 $11) 22... Ba4 {[%emt 0:02:42]} 23. Rxd8+ {[%emt 0:03:33]} Kxd8 {[%emt 0:02:54]} 24. Ng5 {[%emt 0:01:42]} Ke7 {[%emt 0:00:27] Dodges Nf7} 25. Bd5 {[%emt 0:00:05] White is more active.} Bd7 {[%emt 0:02:04] This costs Black the game.} (25... h6 $14 26. Ne6 Be5) 26. Rb3 $18 {[%emt 0:00:28] Black must now prevent Re3+.} Bd4 {[%emt 0:02:03] [#]} 27. Rf3 $1 {[%emt 0:00:21]} Be8 {[%emt 0:01:17]} 28. Ra3 {[%emt 0:02:13]} a5 {[%emt 0:02:54][%cal Ba7a5,Ba5a4][%mdl 32] [#]} 29. Rb3 $1 {[%emt 0:00:06]} b5 {[%emt 0:00:13]} 30. cxb5 {[%emt 0:00:03][%cal Bc4b5,Bb5b6,Bb6b7][%mdl 32]} a4 {[%emt 0:00:05]} 31. Rb1 {[%emt 0:00:04]} Bd7 {[%emt 0:00:18]} 32. Ne4 {[%emt 0:01:47]} Rb8 {[%emt 0:00:35]} 33. e3 {[%emt 0:01:48]} Bg7 {[%emt 0:00:08]} 34. b6 {[%emt 0:00:35]} (34. Nxc5 Rxb5 35. Rxb5 Bxb5 $18) 34... Bf5 {[%emt 0:00:43]} 35. b7 {[%emt 0:01:02]} c4 {[%emt 0:00:26]} 36. Rb4 {[%emt 0:02:20] White is clearly winning.} c3 {[%emt 0:00:51]} 37. Rc4 {[%emt 0:00:06]} Kd7 {[%emt 0:03:10]} (37... Be6 $142 38. Bxe6 (38. Nxc3 Bxc3 39. Re4 Kd6 $18) 38... Kxe6) 38. Nxc3 {[%emt 0:00:41]} Bd3 {[%emt 0:00:13]} 39. Rc8 {[%emt 0:00:04] Weighted Error Value: White=0.07 (flawless) /Black=0.27 (precise) .  Mistake:       	White=1     	Black=3      Inaccurate:     	---       	Black=1      OK:         	White=21    	Black=12     Best:        	White=2     	Black=2      Strong:       	White=1     	Black=1} 1-0

[Event "4NCL 2023-2024"]
[Site "Daventry"]
[Date "2024.05.05"]
[Round "10.18"]
[White "Clarke, Brandon G I"]
[Black "Bazakutsa, Svyatoslav"]
[Result "1/2-1/2"]
[ECO "B33"]
[WhiteElo "2505"]
[BlackElo "2473"]
[Annotator "TA"]
[PlyCount "61"]
[EventDate "2023.11.11"]
[EventType "team-tourn"]
[EventCountry "ENG"]
[SourceTitle "playchess.com"]
[Source "ChessBase"]
[SourceQuality "1"]
[TimeControl "40/6000+30:3000+30"]

{[%evp 27,61,34,34,47,35,45,40,43,51,41,40,43,39,6,4,0,4,0,0,0,0,0,0,0,0,-14,-15,-15,-5,-8,-12,-13,-9,-14,-15,-28]} 1. e4 {[%emt 0:00:06]} c5 {[%emt 0:00:03]} 2. Nf3 {[%emt 0:00:18][%cal Bg1f3,Bf3d4,Bd4b5,Bb5a3,Ba3c2][%mdl 32]} Nc6 {[%emt 0:00:05]} 3. d4 {[%emt 0:00:09]} cxd4 {[%emt 0:00:06]} 4. Nxd4 {[%emt 0:00:05]} Nf6 {[%emt 0:00:08]} 5. Nc3 {[%emt 0:00:06]} e5 {[%emt 0:00:12]} 6. Ndb5 {[%emt 0:00:23]} d6 {[%emt 0:00:10]} 7. Bg5 {[%emt 0:00:38]} a6 {[%emt 0:00:13]} 8. Na3 {[%emt 0:00:03]} b5 {[%emt 0:00:12]} 9. Nd5 {[%emt 0:00:05]} Be7 {[%emt 0:00:10]} 10. Bxf6 {[%emt 0:00:06]} Bxf6 {[%emt 0:00:08]} 11. c3 {[%emt 0:00:07]} Ne7 {[%emt 0:00:11]} 12. Nxf6+ {[%emt 0:00:30]} gxf6 {[%emt 0:00:09]} 13. Nc2 {[%emt 0:00:06]} Bb7 {[%emt 0:00:13]} 14. Bd3 {[%emt 0:00:15]} d5 {[%emt 0:00:19]} 15. Qe2 {[%emt 0:00:14]} dxe4 {[%emt 0:00:54]} 16. Bxe4 {[%emt 0:00:04]} Bxe4 {[%emt 0:00:09]} 17. Qxe4 {[%emt 0:00:05] And now Rd1 would win. White is slightly better.} Qd5 {[%emt 0:00:10]} 18. Qxd5 {[%emt 0:01:34]} Nxd5 {[%emt 0:00:07]} 19. g3 {[%emt 0:01:46] Wards off Nf4} f5 {[%emt 0:04:20]} 20. Ke2 {[%emt 0:05:20]} Ke7 {[%emt 0:24:35] The position is equal.} 21. Rhd1 {[%emt 0:06:38]} Rhd8 {[%emt 0:00:44]} 22. Rd3 {[%emt 0:07:32]} Nb6 {[%emt 0:03:49]} 23. Rxd8 {[%emt 0:02:00]} Rxd8 $11 {[%emt 0:00:10][%mdl 4096] Endgame. KRN-KRN} 24. Nb4 {[%emt 0:00:35] [#] Black must now prevent Nc6+.} Ra8 {[%emt 0:15:53]} 25. Rd1 {[%emt 0:04:32]} Ke6 {[%emt 0:00:37]} 26. Kd2 {[%emt 0:13:31]} a5 {[%emt 0:09:00]} 27. Nd3 {[%emt 0:02:38]} f6 {[%emt 0:00:39]} 28. Nc5+ {[%emt 0:05:25]} Kd5 {[%emt 0:02:05]} 29. Nb3 {[%emt 0:00:15]} h5 {[%emt 0:01:00]} 30. Kc2+ {[%emt 0:04:19]} Kc6 {[%emt 0:00:11]} 31. Nd2 {[%emt 0:08:09] Weighted Error Value: White=0.04 (flawless) /Black=0.01 (flawless) .  Inaccurate:     	White=1     	---        OK:         	White=6     	Black=7      Best:        	---       	Black=1} 1/2-1/2

[Event "4NCL 2023-2024"]
[Site "Daventry"]
[Date "2024.05.05"]
[Round "10.19"]
[White "Durak, Can"]
[Black "Pert, Richard G"]
[Result "1-0"]
[ECO "A09"]
[WhiteElo "2436"]
[BlackElo "2413"]
[Annotator "TA"]
[PlyCount "129"]
[EventDate "2023.11.11"]
[EventType "team-tourn"]
[EventCountry "ENG"]
[SourceTitle "playchess.com"]
[Source "ChessBase"]
[SourceQuality "1"]
[TimeControl "40/6000+30:3000+30"]

{[%evp 47,129,-107,-88,-108,-11,-10,-6,-6,-6,-39,-33,-41,-8,-32,-27,-48,-8,-275,0,0,0,0,0,-124,-91,-122,0,-144,-79,-114,-106,-108,-111,-144,0,0,0,0,0,0,0,0,0,0,0,0,8,0,8,0,11,0,16,17,18,20,35,24,27,19,87,90,94,85,125,108,117,157,290,272,490,420,405,401,29965,29968,29966,29967,29951,29948,6722,6398,5369,1587]} 1. Nf3 {[%emt 0:00:05]} d5 {[%emt 0:02:41]} 2. g3 {[%emt 0:00:12]} g6 {[%emt 0:01:45]} 3. c4 {[%emt 0:00:14]} dxc4 {[%emt 0:07:57]} 4. Na3 {[%emt 0:00:33]} Bg7 {[%emt 0:00:43]} 5. Nxc4 {[%emt 0:00:11]} Nf6 {[%emt 0:02:11]} 6. d4 {[%emt 0:01:39]} O-O {[%emt 0:00:36]} 7. Bg2 {[%emt 0:00:09]} a5 {[%emt 0:03:06]} 8. Bg5 {[%emt 0:04:20]} Be6 {[%emt 0:08:58]} 9. Nce5 {[%emt 0:02:40]} c6 {[%emt 0:06:36]} 10. O-O {[%emt 0:01:52]} Nbd7 {[%emt 0:01:54]} 11. Nd3 {[%emt 0:02:38]} Bd5 {[%emt 0:02:55]} 12. Bxf6 {[%emt 0:04:29]} Nxf6 {[%emt 0:01:41]} 13. e3 {[%emt 0:00:13]} Qb6 {[%emt 0:07:48]} 14. Qc2 {[%emt 0:00:15]} Be4 {[%emt 0:01:17]} 15. Nfe5 {[%emt 0:00:34]} Bxg2 {[%emt 0:01:16]} 16. Kxg2 {[%emt 0:00:08]} Rfd8 {[%emt 0:02:02]} 17. Rfc1 {[%emt 0:02:10]} Nd7 {[%emt 0:03:03]} 18. Nxd7 {[%emt 0:01:48]} Rxd7 {[%emt 0:00:08]} 19. f4 {[%emt 0:00:15]} Rdd8 {[%emt 0:09:00]} 20. Nc5 {[%emt 0:01:22]} Qc7 {[%emt 0:01:06]} 21. Rab1 {[%emt 0:00:28]} b6 {[%emt 0:02:12]} 22. Na4 {[%emt 0:03:31]} c5 {[%emt 0:03:49]} 23. Qe4 {[%emt 0:16:28]} Rac8 {[%emt 0:06:38]} 24. b4 {[%emt 0:17:35]} axb4 {[%emt 0:01:29]} 25. Rxb4 {[%emt 0:00:18]} Qa7 {[%emt 0:06:54]} (25... Rd6 $1 $17 {Threatens to win with ...Qa7.} 26. Rc2 Rcd8 (26... cxb4 27. Rxc7 Rxc7 28. Qb1 $11)) 26. Nxb6 $11 {[%emt 0:00:53]} cxb4 {[%emt 0:05:33]} (26... Qxa2+ 27. Rc2 Qa6 28. Rb1 $16 (28. Rxc5 $2 Qe2+ 29. Kh3 Rxc5 $19) (28. dxc5 Rxc5 29. Rbc4 Rxc4 $15)) 27. Nxc8 {[%emt 0:00:33]} Qxa2+ {[%emt 0:00:18]} 28. Rc2 {[%emt 0:01:22]} Qb1 {[%emt 0:00:06]} 29. Nxe7+ {[%emt 0:00:52]} Kh8 {[%emt 0:00:07]} 30. Qc6 {[%emt 0:03:01]} (30. Nc6 $2 b3 31. Nb4 bxc2 $19) 30... b3 {[%emt 0:01:23]} 31. Re2 $1 {[%emt 0:00:48]} h5 {[%emt 0:10:05]} 32. Qb7 $2 {[%emt 0:08:24][%mdl 8192]} (32. f5 $11 {and White has nothing to worry.}) 32... Bf6 $2 {[%emt 0:02:01]} (32... Qd3 $19 33. Re1 Qd2+ 34. Kf1 b2 (34... Qxh2 35. Qg2 $15)) 33. Nc6 $11 {[%emt 0:11:30]} Qe4+ {[%emt 0:03:16]} 34. Kf2 {[%emt 0:01:59]} Rf8 {[%emt 0:00:54]} 35. Qb4 {[%emt 0:00:35]} (35. h4 $11 {remains equal.}) 35... Kg7 $1 $17 {[%emt 0:01:03]} 36. Na5 {[%emt 0:02:09]} Qh1 {[%emt 0:00:29]} ({Black should play} 36... h4 $1 $17 {[%cal Rh4g3]} 37. Nxb3 Qh1) 37. Qe1 {[%emt 0:01:33]} (37. h4 $1 $11) 37... Qxh2+ {[%emt 0:00:24]} (37... Qd5 $142 {...Ra8 is the strong threat.} 38. Qb4 b2 39. Rxb2 h4 (39... Qh1 40. Qb7 $16)) 38. Kf3 $17 {[%emt 0:00:01]} Qh3 {[%emt 0:00:35]} 39. Nxb3 {[%emt 0:00:35] [#]} h4 $1 {[%emt 0:00:57]} 40. Nd2 {[%emt 0:01:17] [#]} hxg3 {[%emt 0:01:11]} ({Black should try} 40... g5 $1 $17 {Hoping for ...Re8.} 41. Rg2 g4+ 42. Kf2 hxg3+ 43. Kg1 Rh8) 41. Qxg3 $11 {[%emt 0:50:12]} Qh5+ {[%emt 0:10:57]} 42. Qg4 {[%emt 0:00:00]} Qh1+ {[%emt 0:00:05]} 43. Qg2 {[%emt 0:00:00]} Qh5+ {[%emt 0:00:04]} 44. Kf2 {[%emt 0:00:00]} Rc8 {[%emt 0:01:56]} 45. Nf1 {[%emt 0:00:00]} Rc1 {[%emt 0:02:00]} 46. Kg1 {[%emt 0:00:00]} Qb5 {[%emt 0:02:25]} 47. Rd2 {[%emt 0:00:00]} Bd8 {[%emt 0:03:57]} 48. Rc2 {[%emt 0:00:00]} Ra1 {[%emt 0:03:41]} 49. Qh3 {[%emt 0:00:00]} Qd3 {[%emt 0:02:08]} (49... Bh4 $5) 50. Rf2 {[%emt 0:00:00]} Bf6 {[%emt 0:01:25]} 51. f5 {[%emt 0:00:00]} g5 {[%emt 0:09:05]} 52. Kh2 {[%emt 0:00:00]} Re1 {[%emt 0:00:50]} 53. Qf3 {[%emt 0:00:00]} Kf8 {[%emt 0:02:50]} (53... Kg8 $11) 54. Kg2 {[%emt 0:00:00]} Ra1 {[%emt 0:02:20]} 55. Qc6 {[%emt 0:00:00]} Kg7 {[%emt 0:05:49]} 56. Ng3 {[%emt 0:00:00]} Qd1 {[%emt 0:01:33]} 57. Qf3 {[%emt 0:00:00]} Qg1+ {[%emt 0:02:22]} (57... Qc1 $16 {keeps fighting.} 58. Rf1 (58. Nh5+ Kf8 $16) 58... Qc2+ 59. Kh3 (59. Rf2 Qc1 $16) 59... Rxf1 60. Qxf1 Bd8) 58. Kh3 $18 {[%emt 0:00:00]} Kf8 $2 {[%emt 0:00:32]} (58... Kh7 {was called for.} 59. Rg2 Qc1) 59. Rc2 {[%emt 0:00:00]} g4+ {[%emt 0:03:40]} 60. Kxg4 {[%emt 0:00:00]} Ra3 {[%emt 0:00:28]} (60... Qd1 $18) 61. Rc8+ {[%emt 0:00:00]} Kg7 {[%emt 0:00:08]} 62. Kf4 {[%emt 0:00:00]} Qh2 {[%emt 0:03:26]} 63. Qg4+ {[%emt 0:00:00]} Kh6 {[%emt 0:00:11]} 64. Rc6 {[%emt 0:00:00]} Qf2+ {[%emt 0:02:51]} 65. Qf3 {[%emt 0:00:00]} 1-0